[Event "*** Titled Tuesday Blitz"]
[Site "Chess.com"]
[Date "2021.04.06"]
[Round "2"]
[White "lucachess49"]
[Black "CzechmVIII"]
[Result "1-0"]
[WhiteElo "2446"]
[BlackElo "2215"]
[TimeControl "180+1"]
[EndTime "10:17:36 PDT"]
[Termination "lucachess49 won by resignation"]

1. d4 {[%clk 0:03:00.9]} 1... Nf6 {[%clk 0:03:00]} 2. c4 {[%clk 0:02:59.8]} 2...
c5 {[%clk 0:03:00.5]} 3. d5 {[%clk 0:02:59.8]} 3... b5 {[%clk 0:03:01.1]} 4.
cxb5 {[%clk 0:02:59.8]} 4... a6 {[%clk 0:03:01.6]} 5. bxa6 {[%clk 0:02:57.4]}
5... g6 {[%clk 0:03:01.4]} 6. Nc3 {[%clk 0:02:57.8]} 6... Bxa6 {[%clk
0:03:01.6]} 7. Nf3 {[%clk 0:02:56.6]} 7... Bg7 {[%clk 0:03:01]} 8. e4 {[%clk
0:02:55.9]} 8... Qa5 {[%clk 0:03:01.1]} 9. Bxa6 {[%clk 0:02:41.4]} 9... Nxe4
{[%clk 0:03:00.6]} 10. O-O {[%clk 0:02:04.4]} 10... Nxc3 {[%clk 0:02:55.6]} 11.
bxc3 {[%clk 0:02:02.7]} 11... Nxa6 {[%clk 0:02:46.2]} 12. Rb1 {[%clk 0:01:52.6]}
12... O-O {[%clk 0:02:42]} 13. Bg5 {[%clk 0:01:48.6]} 13... e6 {[%clk
0:02:30.4]} 14. Rb7 {[%clk 0:01:07.6]} 14... Bxc3 {[%clk 0:01:58.2]} 15. Rxd7
{[%clk 0:01:04.9]} 15... exd5 {[%clk 0:01:55.6]} 16. Qxd5 {[%clk 0:01:05.2]}
16... Nb4 {[%clk 0:01:44.9]} 17. Qc4 {[%clk 0:01:03.7]} 17... Bg7 {[%clk
0:01:32.1]} 18. Be7 {[%clk 0:01:02.6]} 18... Qxa2 {[%clk 0:01:31.5]} 19. Qxa2
{[%clk 0:01:01.3]} 19... Rxa2 {[%clk 0:01:27.4]} 20. Bxf8 {[%clk 0:01:01.5]}
20... Kxf8 {[%clk 0:01:26.2]} 21. Ng5 {[%clk 0:00:57.6]} 21... Bd4 {[%clk
0:01:14.9]} 22. Rxf7+ {[%clk 0:00:54.8]} 22... Kg8 {[%clk 0:01:05.1]} 23. Rd7
{[%clk 0:00:38.4]} 23... Nd3 {[%clk 0:00:49.7]} 24. Rd8+ {[%clk 0:00:38]} 24...
Kg7 {[%clk 0:00:47]} 25. Ne6+ {[%clk 0:00:38.5]} 25... Kf6 {[%clk 0:00:45.1]}
26. Nxd4 {[%clk 0:00:38.8]} 26... cxd4 {[%clk 0:00:42.8]} 27. Rxd4 {[%clk
0:00:39.7]} 27... Ne5 {[%clk 0:00:41.6]} 28. Rb4 {[%clk 0:00:37.9]} 28... h5
{[%clk 0:00:38.7]} 29. h3 {[%clk 0:00:37.9]} 29... g5 {[%clk 0:00:37]} 30. f4
{[%clk 0:00:36.9]} 30... gxf4 {[%clk 0:00:34.1]} 31. Rbxf4+ {[%clk 0:00:36.7]}
31... Ke6 {[%clk 0:00:33.3]} 32. Re1 {[%clk 0:00:35.8]} 32... Kd6 {[%clk
0:00:30.3]} 33. Rf6+ {[%clk 0:00:35.7]} 33... Kd5 {[%clk 0:00:30.3]} 34. Rf5
{[%clk 0:00:36]} 1-0

[Event "*** Titled Tuesday Blitz"]
[Site "Chess.com"]
[Date "2021.04.06"]
[Round "2"]
[White "Omk124"]
[Black "BogdanDeac"]
[Result "0-1"]
[WhiteElo "2590"]
[BlackElo "3053"]
[TimeControl "180+1"]
[EndTime "10:17:39 PDT"]
[Termination "BogdanDeac won by resignation"]

1. e4 {[%clk 0:03:00.9]} 1... c5 {[%clk 0:02:58.1]} 2. Nf3 {[%clk 0:03:00.6]}
2... a6 {[%clk 0:02:58.2]} 3. d4 {[%clk 0:02:42.9]} 3... cxd4 {[%clk 0:02:57.1]}
4. Nxd4 {[%clk 0:02:43.8]} 4... Nf6 {[%clk 0:02:56.9]} 5. Nc3 {[%clk 0:02:43.5]}
5... e5 {[%clk 0:02:56.5]} 6. Nb3 {[%clk 0:02:41.3]} 6... Bb4 {[%clk 0:02:55.9]}
7. Bd3 {[%clk 0:02:36.9]} 7... Bxc3+ {[%clk 0:02:43.6]} 8. bxc3 {[%clk
0:02:36.6]} 8... d6 {[%clk 0:02:43.4]} 9. O-O {[%clk 0:02:29.8]} 9... O-O {[%clk
0:02:43.1]} 10. Qe2 {[%clk 0:02:24.9]} 10... Qc7 {[%clk 0:02:38.1]} 11. Bb2
{[%clk 0:01:44.8]} 11... Be6 {[%clk 0:02:15.8]} 12. f3 {[%clk 0:01:37.5]} 12...
Nbd7 {[%clk 0:02:13.2]} 13. Rfd1 {[%clk 0:01:36.6]} 13... Nb6 {[%clk 0:02:06.7]}
14. Ba3 {[%clk 0:01:29.3]} 14... Na4 {[%clk 0:01:48.6]} 15. Qe1 {[%clk
0:01:17.9]} 15... Rfd8 {[%clk 0:01:36.8]} 16. c4 {[%clk 0:00:57.8]} 16... Nd7
{[%clk 0:01:22.8]} 17. Kh1 {[%clk 0:00:54.1]} 17... Ndb6 {[%clk 0:01:10]} 18.
Qb4 {[%clk 0:00:52.6]} 18... Rac8 {[%clk 0:00:58.7]} 19. Na5 {[%clk 0:00:43.8]}
19... Nc5 {[%clk 0:00:52.4]} 20. Rab1 {[%clk 0:00:42.7]} 20... Nba4 {[%clk
0:00:45.8]} 21. Nb3 {[%clk 0:00:32.9]} 21... h6 {[%clk 0:00:32.6]} 22. Bf1
{[%clk 0:00:32.4]} 22... Kf8 {[%clk 0:00:28.6]} 23. Qd2 {[%clk 0:00:32.5]} 23...
Nb6 {[%clk 0:00:25.5]} 24. Nxc5 {[%clk 0:00:31.6]} 24... dxc5 {[%clk 0:00:25.5]}
25. Qa5 {[%clk 0:00:32.3]} 25... Rxd1 {[%clk 0:00:22.5]} 26. Rxd1 {[%clk
0:00:33.2]} 26... Nxc4 {[%clk 0:00:22.5]} 27. Bxc4 {[%clk 0:00:32.7]} 27... Qxa5
{[%clk 0:00:22]} 28. Bxe6 {[%clk 0:00:32.3]} 28... fxe6 {[%clk 0:00:20.6]} 0-1

[Event "*** Titled Tuesday Blitz"]
[Site "Chess.com"]
[Date "2021.04.06"]
[Round "2"]
[White "FMOlexandrProhorov"]
[Black "KNCP_719"]
[Result "1-0"]
[WhiteElo "2193"]
[BlackElo "2585"]
[TimeControl "180+1"]
[EndTime "10:17:42 PDT"]
[Termination "FMOlexandrProhorov won by checkmate"]

1. e4 {[%clk 0:03:00.9]} 1... Nf6 {[%clk 0:02:58]} 2. e5 {[%clk 0:02:59.9]} 2...
Nd5 {[%clk 0:02:57.7]} 3. c4 {[%clk 0:03:00.5]} 3... Nb6 {[%clk 0:02:57.4]} 4.
a4 {[%clk 0:03:01.4]} 4... a5 {[%clk 0:02:55.5]} 5. d4 {[%clk 0:03:01.1]} 5...
d6 {[%clk 0:02:55.4]} 6. exd6 {[%clk 0:03:02]} 6... exd6 {[%clk 0:02:53.5]} 7.
Nc3 {[%clk 0:03:02.9]} 7... Be7 {[%clk 0:02:51.2]} 8. Nf3 {[%clk 0:03:02.9]}
8... O-O {[%clk 0:02:49]} 9. h3 {[%clk 0:03:00]} 9... Bf5 {[%clk 0:02:42.8]} 10.
Be2 {[%clk 0:02:54.1]} 10... Nc6 {[%clk 0:02:41.4]} 11. Be3 {[%clk 0:02:54.1]}
11... d5 {[%clk 0:02:09.5]} 12. c5 {[%clk 0:02:40.1]} 12... Nc4 {[%clk
0:02:09.1]} 13. O-O {[%clk 0:02:00.8]} 13... Nxe3 {[%clk 0:01:38.4]} 14. fxe3
{[%clk 0:01:58.6]} 14... Bf6 {[%clk 0:01:04.1]} 15. g4 {[%clk 0:01:53.7]} 15...
Bg6 {[%clk 0:01:01.7]} 16. Bd3 {[%clk 0:01:41.5]} 16... Re8 {[%clk 0:00:55.4]}
17. Qd2 {[%clk 0:01:35.8]} 17... Bg5 {[%clk 0:00:32.4]} 18. Rae1 {[%clk
0:01:30.5]} 18... h6 {[%clk 0:00:31.5]} 19. Bxg6 {[%clk 0:01:26]} 19... fxg6
{[%clk 0:00:32.4]} 20. Qf2 {[%clk 0:01:19.1]} 20... Rf8 {[%clk 0:00:21.4]} 21.
Qg3 {[%clk 0:01:18]} 21... Qd7 {[%clk 0:00:17.8]} 22. h4 {[%clk 0:01:15.8]}
22... Be7 {[%clk 0:00:18.4]} 23. Rf2 {[%clk 0:00:58.5]} 23... Kh7 {[%clk
0:00:18.3]} 24. Ref1 {[%clk 0:00:57.2]} 24... Nb4 {[%clk 0:00:18.6]} 25. Ne5
{[%clk 0:00:54.7]} 25... Qe6 {[%clk 0:00:19]} 26. h5 {[%clk 0:00:52.3]} 26...
gxh5 {[%clk 0:00:15.3]} 27. gxh5 {[%clk 0:00:52.1]} 27... Rxf2 {[%clk
0:00:15.2]} 28. Rxf2 {[%clk 0:00:52.1]} 28... Rf8 {[%clk 0:00:12]} 29. Rg2
{[%clk 0:00:52]} 29... Rg8 {[%clk 0:00:04.2]} 30. Qg6+ {[%clk 0:00:50.1]} 30...
Qxg6 {[%clk 0:00:03.6]} 31. hxg6+ {[%clk 0:00:50.6]} 31... Kh8 {[%clk
0:00:01.6]} 32. Nf7# {[%clk 0:00:51.5]} 1-0

[Event "*** Titled Tuesday Blitz"]
[Site "Chess.com"]
[Date "2021.04.06"]
[Round "2"]
[White "tapu2"]
[Black "Rozhkov_V"]
[Result "1-0"]
[WhiteElo "2662"]
[BlackElo "2427"]
[TimeControl "180+1"]
[EndTime "10:17:44 PDT"]
[Termination "tapu2 won on time"]

1. e4 {[%clk 0:03:00.9]} 1... c5 {[%clk 0:02:59.9]} 2. Nc3 {[%clk 0:02:59.9]}
2... d6 {[%clk 0:02:58.7]} 3. f4 {[%clk 0:02:57.4]} 3... a6 {[%clk 0:02:49.1]}
4. g3 {[%clk 0:02:47.7]} 4... b5 {[%clk 0:02:46.6]} 5. Bg2 {[%clk 0:02:47.7]}
5... Bb7 {[%clk 0:02:46.6]} 6. d3 {[%clk 0:02:48.1]} 6... e6 {[%clk 0:02:38.2]}
7. Nh3 {[%clk 0:02:48.1]} 7... Qc7 {[%clk 0:02:36.2]} 8. O-O {[%clk 0:02:47.5]}
8... Nd7 {[%clk 0:02:34.2]} 9. f5 {[%clk 0:02:31.8]} 9... e5 {[%clk 0:02:30.6]}
10. Nd5 {[%clk 0:02:14.5]} 10... Bxd5 {[%clk 0:02:30]} 11. exd5 {[%clk
0:02:15.4]} 11... Be7 {[%clk 0:02:28.7]} 12. Nf2 {[%clk 0:02:11.5]} 12... h5
{[%clk 0:02:24.2]} 13. h4 {[%clk 0:02:05]} 13... Ngf6 {[%clk 0:02:23.3]} 14. c4
{[%clk 0:02:01.6]} 14... Rg8 {[%clk 0:02:04.3]} 15. Bg5 {[%clk 0:01:59]} 15...
Rb8 {[%clk 0:01:47.3]} 16. Qe2 {[%clk 0:01:56]} 16... Ng4 {[%clk 0:01:05.7]} 17.
Qe4 {[%clk 0:01:56.8]} 17... bxc4 {[%clk 0:00:37]} 18. dxc4 {[%clk 0:01:50.5]}
18... Rxb2 {[%clk 0:00:35.4]} 19. Nxg4 {[%clk 0:01:50.2]} 19... hxg4 {[%clk
0:00:35.2]} 20. Qxg4 {[%clk 0:01:50.5]} 20... Qa5 {[%clk 0:00:21.4]} 21. Rab1
{[%clk 0:01:18.9]} 21... Rxb1 {[%clk 0:00:18]} 22. Rxb1 {[%clk 0:01:17.6]} 22...
Qxa2 {[%clk 0:00:18.6]} 23. Qe4 {[%clk 0:01:11.5]} 23... f6 {[%clk 0:00:13.5]}
24. Be3 {[%clk 0:01:05.6]} 24... Bd8 {[%clk 0:00:12.4]} 25. Rb7 {[%clk 0:01:02]}
25... Ba5 {[%clk 0:00:10.4]} 26. Qg4 {[%clk 0:00:58.9]} 26... Ke7 {[%clk
0:00:09.6]} 27. h5 {[%clk 0:00:54.4]} 27... Bc3 {[%clk 0:00:03.9]} 28. h6 {[%clk
0:00:52]} 1-0

[Event "*** Titled Tuesday Blitz"]
[Site "Chess.com"]
[Date "2021.04.06"]
[Round "2"]
[White "iamnotIM"]
[Black "Godzillator"]
[Result "1-0"]
[WhiteElo "2543"]
[BlackElo "2293"]
[TimeControl "180+1"]
[EndTime "10:17:44 PDT"]
[Termination "iamnotIM won by checkmate"]

1. c4 {[%clk 0:03:00.9]} 1... c6 {[%clk 0:02:59.8]} 2. Nf3 {[%clk 0:03:00.9]}
2... d5 {[%clk 0:03:00.1]} 3. g3 {[%clk 0:03:01.6]} 3... Nf6 {[%clk 0:03:00.4]}
4. Bg2 {[%clk 0:03:02.2]} 4... Bg4 {[%clk 0:03:00.7]} 5. O-O {[%clk 0:03:02.9]}
5... e6 {[%clk 0:03:00]} 6. d3 {[%clk 0:03:01.1]} 6... Nbd7 {[%clk 0:02:59.6]}
7. Be3 {[%clk 0:02:58.1]} 7... Be7 {[%clk 0:00:39.1]} 8. Qb3 {[%clk 0:02:55.9]}
8... b6 {[%clk 0:00:33.1]} 9. cxd5 {[%clk 0:02:48]} 9... cxd5 {[%clk 0:00:32.3]}
10. Nd4 {[%clk 0:02:31.1]} 10... Rc8 {[%clk 0:00:31]} 11. h3 {[%clk 0:02:28]}
11... Bh5 {[%clk 0:00:29]} 12. g4 {[%clk 0:02:10.1]} 12... Bg6 {[%clk
0:00:28.9]} 13. f4 {[%clk 0:02:07.4]} 13... h5 {[%clk 0:00:27.1]} 14. f5 {[%clk
0:02:04.6]} 14... exf5 {[%clk 0:00:26.4]} 15. gxf5 {[%clk 0:02:03.5]} 15... Bh7
{[%clk 0:00:26.6]} 16. Nc3 {[%clk 0:02:03.3]} 16... Nc5 {[%clk 0:00:26.1]} 17.
Qb5+ {[%clk 0:01:55.9]} 17... Kf8 {[%clk 0:00:24.8]} 18. Nc6 {[%clk 0:01:34.4]}
18... Qd7 {[%clk 0:00:24.1]} 19. Nxe7 {[%clk 0:01:34]} 19... Qxe7 {[%clk
0:00:23.7]} 20. Bd4 {[%clk 0:01:29.2]} 20... Kg8 {[%clk 0:00:20.1]} 21. b4
{[%clk 0:01:20.6]} 21... Nb7 {[%clk 0:00:17.1]} 22. Nxd5 {[%clk 0:01:08]} 22...
Nxd5 {[%clk 0:00:16.5]} 23. Qxd5 {[%clk 0:01:08.9]} 23... Nd6 {[%clk 0:00:16.7]}
24. f6 {[%clk 0:01:03.4]} 24... gxf6 {[%clk 0:00:14.8]} 25. Bxf6 {[%clk
0:01:03.8]} 25... Qe3+ {[%clk 0:00:14.7]} 26. Kh1 {[%clk 0:01:03.2]} 26... Nf5
{[%clk 0:00:14.3]} 27. Rxf5 {[%clk 0:01:00.3]} 27... Bxf5 {[%clk 0:00:06.2]} 28.
Qxf5 {[%clk 0:01:01.2]} 28... Re8 {[%clk 0:00:06.1]} 29. Rg1 {[%clk 0:00:53.8]}
29... Rh6 {[%clk 0:00:04.8]} 30. Be4+ {[%clk 0:00:50]} 30... Rg6 {[%clk
0:00:04.4]} 31. Rxg6+ {[%clk 0:00:50.4]} 31... fxg6 {[%clk 0:00:04.4]} 32. Qxg6+
{[%clk 0:00:51.3]} 32... Kf8 {[%clk 0:00:05]} 33. Qg7# {[%clk 0:00:51.4]} 1-0

[Event "*** Titled Tuesday Blitz"]
[Site "Chess.com"]
[Date "2021.04.06"]
[Round "2"]
[White "Skatchkov_V"]
[Black "RamyresCoelho"]
[Result "1-0"]
[WhiteElo "2601"]
[BlackElo "2174"]
[TimeControl "180+1"]
[EndTime "10:17:45 PDT"]
[Termination "Skatchkov_V won by checkmate"]

1. c4 {[%clk 0:02:59.9]} 1... Nf6 {[%clk 0:02:59.7]} 2. Nf3 {[%clk 0:03:00]}
2... g6 {[%clk 0:02:58.8]} 3. Nc3 {[%clk 0:02:59.8]} 3... Bg7 {[%clk 0:02:58.9]}
4. g3 {[%clk 0:03:00.4]} 4... O-O {[%clk 0:02:59.2]} 5. Bg2 {[%clk 0:03:01.2]}
5... d6 {[%clk 0:03:00.1]} 6. O-O {[%clk 0:03:01.9]} 6... e5 {[%clk 0:03:00.3]}
7. d3 {[%clk 0:03:02.3]} 7... c6 {[%clk 0:02:59.2]} 8. Rb1 {[%clk 0:02:59.5]}
8... h6 {[%clk 0:02:56.8]} 9. b4 {[%clk 0:02:59.3]} 9... Be6 {[%clk 0:02:57.3]}
10. b5 {[%clk 0:02:58.5]} 10... Qc7 {[%clk 0:02:55.6]} 11. Nd2 {[%clk
0:02:51.9]} 11... d5 {[%clk 0:02:49.5]} 12. Ba3 {[%clk 0:02:49.2]} 12... Rd8
{[%clk 0:02:47.5]} 13. bxc6 {[%clk 0:02:49.4]} 13... bxc6 {[%clk 0:02:46.2]} 14.
cxd5 {[%clk 0:02:47.5]} 14... Nxd5 {[%clk 0:02:42.6]} 15. Nce4 {[%clk
0:02:37.3]} 15... f5 {[%clk 0:02:34.4]} 16. Nc5 {[%clk 0:02:31.4]} 16... Bc8
{[%clk 0:02:22.9]} 17. Qa4 {[%clk 0:02:23.9]} 17... Kh7 {[%clk 0:02:10.6]} 18.
Rfc1 {[%clk 0:02:24]} 18... a5 {[%clk 0:01:50.4]} 19. Nc4 {[%clk 0:01:54.6]}
19... e4 {[%clk 0:01:41.6]} 20. Bb2 {[%clk 0:01:29.7]} 20... Na6 {[%clk
0:01:20.4]} 21. Nxa6 {[%clk 0:01:27]} 21... Bxa6 {[%clk 0:01:17.6]} 22. Bxg7
{[%clk 0:01:27.5]} 22... Kxg7 {[%clk 0:01:16.6]} 23. dxe4 {[%clk 0:01:28]} 23...
fxe4 {[%clk 0:01:02.9]} 24. Bxe4 {[%clk 0:01:28.9]} 24... Bxc4 {[%clk
0:00:57.8]} 25. Qxc4 {[%clk 0:01:28.6]} 25... Qd6 {[%clk 0:00:39.4]} 26. Qxc6
{[%clk 0:01:26.8]} 26... Qxc6 {[%clk 0:00:39]} 27. Rxc6 {[%clk 0:01:27.7]} 27...
Nb4 {[%clk 0:00:37]} 28. Rxg6+ {[%clk 0:01:27.8]} 28... Kf7 {[%clk 0:00:30.5]}
29. a3 {[%clk 0:01:28.1]} 29... Nd5 {[%clk 0:00:23.2]} 30. Rb7+ {[%clk
0:01:25.7]} 30... Ne7 {[%clk 0:00:19.6]} 31. Rxh6 {[%clk 0:01:25.2]} 31... Rd1+
{[%clk 0:00:18.9]} 32. Kg2 {[%clk 0:01:25.6]} 32... Re8 {[%clk 0:00:18.9]} 33.
Bg6+ {[%clk 0:01:23.4]} 33... Kg7 {[%clk 0:00:13.5]} 34. Bxe8 {[%clk 0:01:24.3]}
34... Kxh6 {[%clk 0:00:14]} 35. Rxe7 {[%clk 0:01:24.3]} 35... Rd2 {[%clk
0:00:13.9]} 36. g4 {[%clk 0:01:24.1]} 36... Kg5 {[%clk 0:00:13.9]} 37. Kg3
{[%clk 0:01:23.6]} 37... Kf6 {[%clk 0:00:11.6]} 38. Re4 {[%clk 0:01:23.6]} 38...
Kg5 {[%clk 0:00:11.3]} 39. Re6 {[%clk 0:01:23.2]} 39... Rd3+ {[%clk 0:00:08.9]}
40. exd3 {[%clk 0:01:23]} 40... a4 {[%clk 0:00:09.1]} 41. h4# {[%clk 0:01:23.9]}
1-0

[Event "*** Titled Tuesday Blitz"]
[Site "Chess.com"]
[Date "2021.04.06"]
[Round "2"]
[White "IMAghasiyevKamal"]
[Black "Kobalia"]
[Result "0-1"]
[WhiteElo "2516"]
[BlackElo "2761"]
[TimeControl "180+1"]
[EndTime "10:17:46 PDT"]
[Termination "Kobalia won by checkmate"]

1. d4 {[%clk 0:03:00]} 1... Nf6 {[%clk 0:02:55.9]} 2. c4 {[%clk 0:02:59.6]} 2...
g6 {[%clk 0:02:56.2]} 3. f3 {[%clk 0:02:58.5]} 3... Bg7 {[%clk 0:02:55]} 4. e4
{[%clk 0:02:57.9]} 4... O-O {[%clk 0:02:55.9]} 5. Nc3 {[%clk 0:02:57]} 5... c6
{[%clk 0:02:55.5]} 6. Be3 {[%clk 0:02:49.5]} 6... a6 {[%clk 0:02:55.7]} 7. Bd3
{[%clk 0:02:46.7]} 7... b5 {[%clk 0:02:54.9]} 8. cxb5 {[%clk 0:02:40.7]} 8...
axb5 {[%clk 0:02:53.9]} 9. a3 {[%clk 0:02:40.8]} 9... Na6 {[%clk 0:02:46.3]} 10.
Nge2 {[%clk 0:02:38.6]} 10... Rb8 {[%clk 0:02:45.5]} 11. b4 {[%clk 0:02:34.4]}
11... Nc7 {[%clk 0:02:41]} 12. O-O {[%clk 0:02:24.8]} 12... d6 {[%clk 0:02:41]}
13. Qd2 {[%clk 0:02:21.2]} 13... Nd7 {[%clk 0:02:39.9]} 14. f4 {[%clk
0:02:07.6]} 14... Nb6 {[%clk 0:01:53.6]} 15. f5 {[%clk 0:02:04]} 15... d5 {[%clk
0:01:27]} 16. e5 {[%clk 0:01:44.9]} 16... Nc4 {[%clk 0:01:25.4]} 17. Bxc4 {[%clk
0:01:42.4]} 17... dxc4 {[%clk 0:01:25.6]} 18. Bh6 {[%clk 0:01:34.3]} 18... Bxf5
{[%clk 0:01:14.9]} 19. Rxf5 {[%clk 0:00:58.1]} 19... gxf5 {[%clk 0:01:14]} 20.
Qg5 {[%clk 0:00:56.6]} 20... Ne6 {[%clk 0:01:13.4]} 21. Qg3 {[%clk 0:00:56.4]}
21... Kh8 {[%clk 0:01:13.1]} 22. Bxg7+ {[%clk 0:00:52.9]} 22... Nxg7 {[%clk
0:01:14]} 23. Qf3 {[%clk 0:00:52.4]} 23... Ne6 {[%clk 0:01:10.4]} 24. Rd1 {[%clk
0:00:48.9]} 24... Rg8 {[%clk 0:01:09.7]} 25. Qxf5 {[%clk 0:00:49]} 25... Qf8
{[%clk 0:01:08.8]} 26. Qe4 {[%clk 0:00:45.7]} 26... Qh6 {[%clk 0:01:07.3]} 27.
Rf1 {[%clk 0:00:41.6]} 27... Rg7 {[%clk 0:01:06.6]} 28. Qxc6 {[%clk 0:00:39.4]}
28... Rbg8 {[%clk 0:01:03.1]} 29. g3 {[%clk 0:00:37.4]} 29... Qe3+ {[%clk
0:01:01.7]} 30. Kg2 {[%clk 0:00:36.1]} 30... Nxd4 {[%clk 0:00:59.9]} 31. Nxd4
{[%clk 0:00:34.2]} 31... Qxd4 {[%clk 0:00:59.7]} 32. Nxb5 {[%clk 0:00:33.6]}
32... Qxe5 {[%clk 0:00:53.1]} 33. Qxc4 {[%clk 0:00:23.1]} 33... Rxg3+ {[%clk
0:00:51.6]} 34. Kh1 {[%clk 0:00:23.5]} 34... Rg2 {[%clk 0:00:44]} 35. Qd4 {[%clk
0:00:21.6]} 35... Rxh2# {[%clk 0:00:42.8]} 0-1

[Event "*** Titled Tuesday Blitz"]
[Site "Chess.com"]
[Date "2021.04.06"]
[Round "2"]
[White "Lion-Al-Messi"]
[Black "PavelShkapenko"]
[Result "0-1"]
[WhiteElo "2501"]
[BlackElo "2731"]
[TimeControl "180+1"]
[EndTime "10:17:46 PDT"]
[Termination "PavelShkapenko won by resignation"]

1. e4 {[%clk 0:03:00.9]} 1... e5 {[%clk 0:02:59.7]} 2. Nf3 {[%clk 0:02:56.5]}
2... Nc6 {[%clk 0:03:00.1]} 3. Bb5 {[%clk 0:02:56.9]} 3... Bc5 {[%clk
0:02:59.9]} 4. c3 {[%clk 0:02:54.5]} 4... f5 {[%clk 0:02:59.4]} 5. d4 {[%clk
0:02:53.4]} 5... fxe4 {[%clk 0:02:59.1]} 6. Nxe5 {[%clk 0:02:38.5]} 6... Nxe5
{[%clk 0:02:58.2]} 7. Qh5+ {[%clk 0:02:19.4]} 7... Nf7 {[%clk 0:02:57.9]} 8. Bc4
{[%clk 0:02:00.2]} 8... Qe7 {[%clk 0:02:32.7]} 9. dxc5 {[%clk 0:01:58.8]} 9...
Nf6 {[%clk 0:02:32.1]} 10. Qh4 {[%clk 0:01:51.5]} 10... Qxc5 {[%clk 0:02:28.4]}
11. Bxf7+ {[%clk 0:01:49.9]} 11... Kxf7 {[%clk 0:02:28.6]} 12. Bg5 {[%clk
0:01:36.2]} 12... d5 {[%clk 0:02:14.2]} 13. Bxf6 {[%clk 0:01:33.4]} 13... gxf6
{[%clk 0:02:13.8]} 14. O-O {[%clk 0:01:33.5]} 14... Bf5 {[%clk 0:02:11.1]} 15.
Nd2 {[%clk 0:01:31.8]} 15... Rag8 {[%clk 0:02:00.7]} 16. Nb3 {[%clk 0:00:45.5]}
16... Qe7 {[%clk 0:02:00.1]} 17. Nd4 {[%clk 0:00:43.8]} 17... Bd7 {[%clk
0:02:00]} 18. Rfe1 {[%clk 0:00:37.8]} 18... Rg6 {[%clk 0:01:45]} 19. f3 {[%clk
0:00:34.1]} 19... c5 {[%clk 0:01:44.7]} 20. Ne2 {[%clk 0:00:21.2]} 20... f5
{[%clk 0:01:36.5]} 21. Qxe7+ {[%clk 0:00:18]} 21... Kxe7 {[%clk 0:01:36.5]} 22.
Nf4 {[%clk 0:00:18.9]} 22... Rd6 {[%clk 0:01:36.4]} 23. Rad1 {[%clk 0:00:19]}
23... Bc6 {[%clk 0:01:35.3]} 24. Kf2 {[%clk 0:00:16]} 24... Rhd8 {[%clk
0:01:32.5]} 25. fxe4 {[%clk 0:00:13.2]} 25... fxe4 {[%clk 0:01:29.1]} 26. Ne2
{[%clk 0:00:06.2]} 26... d4 {[%clk 0:01:25.5]} 27. cxd4 {[%clk 0:00:07.1]} 27...
cxd4 {[%clk 0:01:26]} 28. Ng3 {[%clk 0:00:07.7]} 28... e3+ {[%clk 0:01:26.5]}
29. Kg1 {[%clk 0:00:08]} 29... Kf6 {[%clk 0:01:25]} 30. Rf1+ {[%clk 0:00:07.7]}
30... Kg6 {[%clk 0:01:25.1]} 31. Rf4 {[%clk 0:00:06.9]} 31... d3 {[%clk
0:01:19.4]} 32. Rg4+ {[%clk 0:00:05.8]} 32... Kf6 {[%clk 0:01:19.4]} 33. Rf4+
{[%clk 0:00:05.9]} 33... Ke5 {[%clk 0:01:19.1]} 34. Rf5+ {[%clk 0:00:06.1]}
34... Ke6 {[%clk 0:01:19.4]} 35. Rf4 {[%clk 0:00:05]} 35... e2 {[%clk
0:01:16.4]} 36. Re1 {[%clk 0:00:04.8]} 36... Bb5 {[%clk 0:01:15]} 37. Ne4 {[%clk
0:00:02.9]} 37... d2 {[%clk 0:01:12.5]} 38. Nxd2 {[%clk 0:00:02.9]} 38... Rxd2
{[%clk 0:01:12.7]} 39. Kf2 {[%clk 0:00:02.8]} 39... Rd1 {[%clk 0:01:10.7]} 40.
Rb4 {[%clk 0:00:02.2]} 0-1

[Event "*** Titled Tuesday Blitz"]
[Site "Chess.com"]
[Date "2021.04.06"]
[Round "2"]
[White "Natalya_Buksa"]
[Black "Witik"]
[Result "1-0"]
[WhiteElo "2519"]
[BlackElo "2716"]
[TimeControl "180+1"]
[EndTime "10:17:47 PDT"]
[Termination "Natalya_Buksa won by resignation"]

1. d4 {[%clk 0:02:42.8]} 1... Nf6 {[%clk 0:02:58.8]} 2. Nc3 {[%clk 0:02:42.5]}
2... g6 {[%clk 0:02:54.9]} 3. e4 {[%clk 0:02:40.7]} 3... d6 {[%clk 0:02:55.1]}
4. Bg5 {[%clk 0:02:41.2]} 4... Bg7 {[%clk 0:02:55.1]} 5. e5 {[%clk 0:02:41.5]}
5... Nfd7 {[%clk 0:02:47.2]} 6. f4 {[%clk 0:02:39.9]} 6... O-O {[%clk 0:02:45]}
7. h4 {[%clk 0:02:39.4]} 7... c5 {[%clk 0:02:21.7]} 8. h5 {[%clk 0:02:15.8]}
8... cxd4 {[%clk 0:02:16.1]} 9. hxg6 {[%clk 0:02:09.6]} 9... hxg6 {[%clk
0:01:45]} 10. Qxd4 {[%clk 0:01:57.2]} 10... dxe5 {[%clk 0:00:51.6]} 11. Qf2
{[%clk 0:01:56.7]} 11... Nf6 {[%clk 0:00:18.2]} 12. Qh4 {[%clk 0:01:53.5]} 12...
Nh5 {[%clk 0:00:10.8]} 13. g4 {[%clk 0:01:43.9]} 13... f6 {[%clk 0:00:10.9]} 14.
gxh5 {[%clk 0:01:43.8]} 14... fxg5 {[%clk 0:00:11.2]} 15. Qxg5 {[%clk
0:01:44.5]} 15... e6 {[%clk 0:00:10.6]} 16. Qxg6 {[%clk 0:01:40.7]} 16... Qf6
{[%clk 0:00:10.6]} 17. Qxf6 {[%clk 0:01:21.4]} 17... Rxf6 {[%clk 0:00:10.5]} 18.
fxe5 {[%clk 0:01:20.9]} 18... Rf5 {[%clk 0:00:11]} 19. O-O-O {[%clk 0:01:17.7]}
19... Nc6 {[%clk 0:00:11.3]} 20. Bd3 {[%clk 0:01:10.1]} 20... Bh6+ {[%clk
0:00:11]} 21. Kb1 {[%clk 0:01:09.6]} 21... Rxe5 {[%clk 0:00:11.4]} 22. Nf3
{[%clk 0:01:09.2]} 22... Ra5 {[%clk 0:00:09.8]} 23. Rdg1+ {[%clk 0:01:01.8]}
23... Kf7 {[%clk 0:00:10]} 24. Rg6 {[%clk 0:01:01.4]} 24... Bf4 {[%clk
0:00:06.4]} 25. h6 {[%clk 0:00:54.3]} 25... Bd7 {[%clk 0:00:06.9]} 26. Rg7+
{[%clk 0:00:54.6]} 26... Kf6 {[%clk 0:00:02.1]} 27. Rxd7 {[%clk 0:00:54.4]}
27... Rh8 {[%clk 0:00:02.8]} 28. h7 {[%clk 0:00:53.6]} 28... Ne5 {[%clk
0:00:03.1]} 29. Nxe5 {[%clk 0:00:50.4]} 29... Bxe5 {[%clk 0:00:03.4]} 30. Ne4+
{[%clk 0:00:49.6]} 30... Kg6 {[%clk 0:00:02.7]} 31. Nd6+ {[%clk 0:00:45.2]} 1-0